{"text_format":"3","workbook":"xlsx","n_sheets":1,"sheets":["Počáteční výdaje"],"not_rendered":{"defined_names":1},"read":"whole","date_system":"1900"}

{"sheet":"Počáteční výdaje","index":0,"n_rows":120,"n_cols":4,"rows_kept":120,"merged":[[1,1,1,3],[10,1,10,3],[17,1,17,3],[25,1,25,3],[34,1,34,3],[42,1,42,3],[50,1,50,3],[55,1,55,3],[57,1,57,3],[59,1,59,3],[60,1,60,3],[69,1,69,3],[76,1,76,3],[81,1,81,3],[82,1,82,3],[90,1,90,3],[102,1,102,3],[110,1,110,3],[115,1,115,3]]}
["POČÁTEČNÍ VÝDAJE",null,null,"NÁZEV SPOLEČNOSTI"]
[null,"POZNÁMKA K POUŽITÍ TOHOTO LISTU\n\nTéměř každý, kdo začne podnikat, podcení náklady a potom čelí nebezpečí nedostatečných kapitálových rezerv.  Tomuto problému se dá vyhnout důkladnou rozvahou a plánováním. Naše šablona Počáteční Výdaje vás tímto procesem provede.\n\nZAČNĚTE ODHADEM VÝDAJŮ\nJaké budou náklady na rozjezd vašeho podnikání?  Klíčem k přesnému odhadu je věnovat pozornost detailům. Pro každou kategorii výdajů sepište seznam všeho, co bude potřeba nakoupit. Sem patří jak hmotný majetek (třeba vybavení, inventář), tak služby (třeba rekonstrukce, pojištění).  Následně zjistěte, kde byste toto zboží a služby mohli nakoupit. Nezaměřujte se jenom na jednoho dodavatele, porovnejte nabídku různých dodavatelů. Nedívejte se jenom na cenu, důležité jsou i platební podmínky, dodací lhůty, důvěryhodnost a úroveň poskytovaných služeb.  "]
[]
[null,"POČÁTEČNÍ VÝDAJE"]
[null,"BUDOVY A NEMOVITOSTI"," ","ČÁSTKA"]
[null,"Nákup",null,{"v":0,"d":"0.00 Kč"}]
[null,"Stavba",null,{"v":0,"d":"0.00 Kč"}]
[null,"Rekonstrukce",null,{"v":0,"d":"0.00 Kč"}]
[null,"Jiné",null,{"v":0,"d":"0.00 Kč"}]
[null,"Celkem",null,{"$f":"SUBTOTAL(109,Nemovitosti[ČÁSTKA])","v":{"v":0,"d":"0.00 Kč"}}]
[]
[null,"ÚPRAVY PRONAJATÝCH PROSTOR"," ","ČÁSTKA"]
[null,"Položka 1",null,{"v":0,"d":"0.00 Kč"}]
[null,"Položka 2",null,{"v":0,"d":"0.00 Kč"}]
[null,"Položka 3",null,{"v":0,"d":"0.00 Kč"}]
[null,"Položka 4",null,{"v":0,"d":"0.00 Kč"}]
[null,"Celkem",null,{"$f":"SUBTOTAL(109,Úpravy[ČÁSTKA])","v":{"v":0,"d":"0.00 Kč"}}]
[]
[null,"SEZNAM PROVOZNÍHO VYBAVENÍ"," ","ČÁSTKA"]
[null,"Nábytek",null,{"v":0,"d":"0.00 Kč"}]
[null,"Zařízení",null,{"v":0,"d":"0.00 Kč"}]
[null,"Přípojky",null,{"v":0,"d":"0.00 Kč"}]
[null,"Strojní vybavení",null,{"v":0,"d":"0.00 Kč"}]
[null,"Jiné",null,{"v":0,"d":"0.00 Kč"}]
[null,"Celkem",null,{"$f":"SUBTOTAL(109,Provozní_vybavení[ČÁSTKA])","v":{"v":0,"d":"0.00 Kč"}}]
[]
[null,"VÝDAJE NA PROVOZ A SPRÁVU"," ","ČÁSTKA"]
[null,"Pronájem",null,{"v":0,"d":"0.00 Kč"}]
[null,"Platby za služby",null,{"v":0,"d":"0.00 Kč"}]
[null,"Platby za účetnictví a právní služby",null,{"v":0,"d":"0.00 Kč"}]
[null,"Platby pojistného",null,{"v":0,"d":"0.00 Kč"}]
[null,"Platy před zahájením provozu ",null,{"v":0,"d":"0.00 Kč"}]
[null,"Jiné",null,{"v":0,"d":"0.00 Kč"}]
[null,"Celkem",null,{"$f":"SUBTOTAL(109,SprávníVýdaje[ČÁSTKA])","v":{"v":0,"d":"0.00 Kč"}}]
[]
[null,"POČÁTEČNÍ INVENTÁŘ"," ","ČÁSTKA"]
[null,"Kategorie 1",null,{"v":0,"d":"0.00 Kč"}]
[null,"Kategorie 2",null,{"v":0,"d":"0.00 Kč"}]
[null,"Kategorie 3",null,{"v":0,"d":"0.00 Kč"}]
[null,"Kategorie 4",null,{"v":0,"d":"0.00 Kč"}]
[null,"Kategorie 5",null,{"v":0,"d":"0.00 Kč"}]
[null,"Celkem",null,{"$f":"SUBTOTAL(109,PočátečníInventář[ČÁSTKA])","v":{"v":0,"d":"0.00 Kč"}}]
[]
[null,"VÝDAJE NA REKLAMU A PROPAGACI"," ","ČÁSTKA"]
[null,"Reklama",null,{"v":0,"d":"0.00 Kč"}]
[null,"Značení",null,{"v":0,"d":"0.00 Kč"}]
[null,"Tisk",null,{"v":0,"d":"0.00 Kč"}]
[null,"Cestování/zábava",null,{"v":0,"d":"0.00 Kč"}]
[null,"Jiné/další kategorie",null,{"v":0,"d":"0.00 Kč"}]
[null,"Celkem",null,{"$f":"SUBTOTAL(109,VýdajeNaPropagaci[ČÁSTKA])","v":{"v":0,"d":"0.00 Kč"}}]
[]
[null,"JINÉ VÝDAJE"," ","ČÁSTKA"]
[null,"Jiné výdaje 1",null,{"v":0,"d":"0.00 Kč"}]
[null,"Jiné výdaje 2",null,{"v":0,"d":"0.00 Kč"}]
[null,"Celkem",null,{"$f":"SUBTOTAL(109,JinéVýdaje[ČÁSTKA])","v":{"v":0,"d":"0.00 Kč"}}]
[]
[null,"Rezerva na nepředpokládané výdaje",null,{"v":0,"d":"0.00 Kč"}]
[]
[null,"Provozní kapitál ",null,{"v":0,"d":"0.00 Kč"}]
[]
[null,"PŘIDEJTE REZERVU NA NEPŘEDPOKLÁDANÉ VÝDAJE\nV komentáři vysvětlete, na základě čeho jste se rozhodli vyčlenit danou částku jako rezervu. \n\nSTANOVTE SVŮJ PENĚŽNÍ TOK\nNemůžete začít podnikat s prázdným bankovním účtem.  Potřebujete určitou hotovostní finanční rezervu na úhradu výdajů, dokud se podnikání nerozběhne. Nakonec byste si měli udělat roční prognózu peněžního toku. Tady vypracujete odhad potřebného provozního kapitálu. Můžete zatím nechat tento řádek prázdný nebo do něj zadat svůj nejlepší hrubý odhad. Po upřesnění peněžního toku se sem můžete vrátit a zadat číslo založené na přesných propočtech.\n\nZADEJTE ZDROJE KAPITÁLU\nTeď, když máte odhad, kolik kapitálu budete potřebovat do začátku, byste se měli věnovat horní části tohoto listu. Zadejte částky, které do podnikání sami vložíte, kolik vloží partneři nebo investoři a kolik dostanete z úvěrů."]
[]
[null,"ZDROJE KAPITÁLU"]
[null,"INVESTICE VLASTNÍKŮ (JMÉNO A PODÍL %)"," ","ČÁSTKA"]
[null,"Vaše jméno a procentuální podíl",null,{"v":0,"d":"0.00 Kč"}]
[null,"Další investor",null,{"v":0,"d":"0.00 Kč"}]
[null,"Další investor",null,{"v":0,"d":"0.00 Kč"}]
[null,"Další investor",null,{"v":0,"d":"0.00 Kč"}]
[null,"Celkem",null,{"$f":"SUBTOTAL(109,InvesticeVlastníků[ČÁSTKA])","v":{"v":0,"d":"0.00 Kč"}}]
[]
[null,"BANKOVNÍ ÚVĚRY"," ","ČÁSTKA"]
[null,"Banka 1",null,{"v":0,"d":"0.00 Kč"}]
[null,"Banka 2",null,{"v":0,"d":"0.00 Kč"}]
[null,"Banka 3",null,{"v":0,"d":"0.00 Kč"}]
[null,"Banka 4",null,{"v":0,"d":"0.00 Kč"}]
[null,"Celkem",null,{"$f":"SUBTOTAL(109,BankovníÚvěry[ČÁSTKA])","v":{"v":0,"d":"0.00 Kč"}}]
[]
[null,"JINÉ ÚVĚRY"," ","ČÁSTKA"]
[null,"Zdroj 1",null,{"v":0,"d":"0.00 Kč"}]
[null,"Zdroj 2",null,{"v":0,"d":"0.00 Kč"}]
[null,"Celkem",null,{"$f":"SUBTOTAL(109,JinéÚvěry[ČÁSTKA])","v":{"v":0,"d":"0.00 Kč"}}]
[]
[null,"DOLOŽTE HODNOTU ZÁRUK\nPokud chcete tuto rozvahu použít při žádosti o bankovní úvěr, uveďte v části ke konci stránky majetek, který nabízíte jako záruky úvěru, a svůj odhad hodnoty těchto položek. Nachystejte si podklady, kterými doložíte reálnou hodnotu vašich odhadů záruk."]
[]
[null,"SOUHRN"]
[null,"ZDROJ KAPITÁLU"," ","SOUČTY"]
[null,"Investice vlastníků a dalších investorů",null,{"$f":"InvesticeVlastníků[[#Totals],[ČÁSTKA]]","v":{"v":0,"d":"0.00 Kč"}}]
[null,"Bankovní úvěry",null,{"$f":"BankovníÚvěry[[#Totals],[ČÁSTKA]]","v":{"v":0,"d":"0.00 Kč"}}]
[null,"Jiné úvěry",null,{"$f":"JinéÚvěry[[#Totals],[ČÁSTKA]]","v":{"v":0,"d":"0.00 Kč"}}]
[null,"Celkem",null,{"$f":"SUBTOTAL(109,ZdrojeKapitálu[SOUČTY])","v":{"v":0,"d":"0.00 Kč"}}]
[]
[null,"POČÁTEČNÍ VÝDAJE"," ","SOUČTY"]
[null,"Budovy a nemovitosti",null,{"$f":"Nemovitosti[[#Totals],[ČÁSTKA]]","v":{"v":0,"d":"0.00 Kč"}}]
[null,"Úpravy pronajatých prostor",null,{"$f":"Úpravy[[#Totals],[ČÁSTKA]]","v":{"v":0,"d":"0.00 Kč"}}]
[null,"Provozní vybavení",null,{"$f":"Provozní_vybavení[[#Totals],[ČÁSTKA]]","v":{"v":0,"d":"0.00 Kč"}}]
[null,"Výdaje na provoz a správu",null,{"$f":"SprávníVýdaje[[#Totals],[ČÁSTKA]]","v":{"v":0,"d":"0.00 Kč"}}]
[null,"Počáteční inventář",null,{"$f":"PočátečníInventář[[#Totals],[ČÁSTKA]]","v":{"v":0,"d":"0.00 Kč"}}]
[null,"Výdaje na reklamu a propagaci",null,{"$f":"VýdajeNaPropagaci[[#Totals],[ČÁSTKA]]","v":{"v":0,"d":"0.00 Kč"}}]
[null,"Jiné výdaje",null,{"$f":"JinéVýdaje[[#Totals],[ČÁSTKA]]","v":{"v":0,"d":"0.00 Kč"}}]
[null,"Rezervní fond",null,{"$f":"SUM('Počáteční výdaje'!$C$57)","v":{"v":0,"d":"0.00 Kč"}}]
[null,"Provozní kapitál",null,{"$f":"SUM('Počáteční výdaje'!$C$59)","v":{"v":0,"d":"0.00 Kč"}}]
[null,"Celkem",null,{"$f":"SUBTOTAL(109,PočátečníVýdaje[SOUČTY])","v":{"v":0,"d":"0.00 Kč"}}]
[]
[null,"ZÁRUKY A ZÁSTAVY ÚVĚRU"]
[null,"ZÁRUKY ÚVĚRŮ","POPIS","HODNOTA"]
[null,"Nemovitosti",null,{"v":0,"d":"0.00 Kč"}]
[null,"Jiné záruky",null,{"v":0,"d":"0.00 Kč"}]
[null,"Jiné záruky",null,{"v":0,"d":"0.00 Kč"}]
[null,"Jiné záruky",null,{"v":0,"d":"0.00 Kč"}]
[null,"Celkem",null,{"$f":"SUBTOTAL(109,Záruky[HODNOTA])","v":{"v":0,"d":"0.00 Kč"}}]
[]
[null,"VLASTNÍCI"," ","  "]
[null,"Vaše jméno"]
[null,"Další vlastník"]
[null,"Další vlastník"]
[]
[null,"RUČITELÉ ÚVĚRŮ (JINÍ NEŽ VLASTNÍCI)"," ","  "]
[null,"Ručitel úvěru 1"]
[null,"Ručitel úvěru 2"]
[null,"Ručitel úvěru 3"]